fUSD/lending_fUSD_20241207
["ID","MTS","AMOUNT","RATE_DAILY","PERIOD"]
[344513972,1733534565818,-500.0,8.219e-05,2]
[344513973,1733534565840,-500.0,8.219e-05,2]
[344513974,1733534565862,-503.57,8.219e-05,2]
[344513975,1733534565883,-500.0,8.219e-05,2]
[344513976,1733534565905,-500.0,8.219e-05,2]
[344513977,1733534565925,-1132.25,8.219e-05,2]
[344513978,1733534565947,-1220.76,8.219e-05,2]
[344513979,1733534565969,-1265.94,8.219e-05,2]
[344513980,1733534565991,-500.0,8.219e-05,2]
[344513981,1733534566013,-500.0,8.219e-05,2]
[344513982,1733534566036,-752.05,8.219e-05,2]
[344513983,1733534566060,-500.0,8.219e-05,2]
[344513984,1733534566084,-2267.5,8.219e-05,2]
[344513985,1733534566108,-500.0,8.219e-05,2]
[344513986,1733534566131,-500.0,8.219e-05,2]
[344513987,1733534566152,-1615.99,8.219e-05,2]
[344513988,1733534566173,-500.0,8.219e-05,2]
[344513989,1733534566194,-1420.89,8.219e-05,2]
[344513990,1733534566215,-500.0,8.219e-05,2]
[344513991,1733534566239,-1426.88,8.219e-05,2]
[344513992,1733534566262,-628.29,8.219e-05,2]
[344513993,1733534566284,-634.1192793,8.219e-05,2]
[344513994,1733534566306,-500.0,8.219e-05,2]
[344513995,1733534566328,-195.2,8.219e-05,2]
[344513996,1733534566351,-2472.38,8.219e-05,2]
[344513997,1733534566372,-1911.04,8.219e-05,2]
[344513998,1733534566394,-1987.1,8.219e-05,2]
[344513999,1733534566416,-500.0,8.219e-05,2]
[344514000,1733534566442,-1972.26,8.219e-05,2]
[344514001,1733534566464,-500.74,8.219e-05,2]
[344514002,1733534566488,-2440.64,8.219e-05,2]
[344514003,1733534566512,-500.0,8.219e-05,2]
[344514004,1733534566536,-500.0,8.219e-05,2]
[344514005,1733534566558,-500.0,8.219e-05,2]
[344514006,1733534566581,-500.0,8.219e-05,2]
[344514007,1733534566603,-2962.07,8.219e-05,2]
[344514008,1733534566626,-500.0,8.219e-05,2]
[344514009,1733534566649,-1429.3,8.219e-05,2]
[344514010,1733534566671,-1689.51,8.219e-05,2]
[344514011,1733534566695,-1575.83,8.219e-05,2]
[344514012,1733534566717,-1204.31,8.219e-05,2]
[344514013,1733534566741,-249.36311929,8.219e-05,2]
[344514014,1733534566763,-500.0,8.219e-05,2]
[344514015,1733534566789,-1139.66,8.219e-05,2]
[344514016,1733534566811,-500.0,8.219e-05,2]
[344514017,1733534566836,-1037.0,8.219e-05,2]
[344514018,1733534566860,-500.0,8.219e-05,2]
[344514019,1733534566882,-500.0,8.219e-05,2]
[344514020,1733534566905,-500.0,8.219e-05,2]
[344514021,1733534566928,-1418.65,8.219e-05,2]
[344514022,1733534566951,-500.0,8.219e-05,2]
[344514023,1733534566973,-359.64132416,8.219e-05,2]
[344514024,1733534566998,-1875.73,8.219e-05,2]
[344514025,1733534567021,-372.55,8.219e-05,2]
[344514026,1733534567043,-500.0,8.219e-05,2]
[344514027,1733534567065,-500.0,8.219e-05,2]
[344514028,1733534567087,-500.0,8.219e-05,2]
[344514029,1733534567109,-500.0,8.219e-05,2]
[344514030,1733534567131,-612.23078731,8.219e-05,2]
[344514031,1733534567153,-873.76,8.219e-05,2]
[344514032,1733534567176,-588.28,8.219e-05,2]
[344514033,1733534567198,-400.08753942,8.219e-05,2]
[344514034,1733534567220,-500.0,8.219e-05,2]
[344514035,1733534567246,-1927.52,8.219e-05,2]
[344514036,1733534567268,-689.41,8.219e-05,2]
[344514037,1733534567289,-574.63,8.219e-05,2]
[344514038,1733534567310,-500.0,8.219e-05,2]
[344514039,1733534567331,-1314.25,8.219e-05,2]
[344514040,1733534567353,-500.0,8.219e-05,2]
[344514041,1733534567376,-500.0,8.219e-05,2]
[344514042,1733534567400,-2269.31,8.219e-05,2]
[344514043,1733534567423,-2557.35,8.219e-05,2]
[344514044,1733534567450,-500.0,8.219e-05,2]
[344514045,1733534567473,-500.0,8.219e-05,2]
[344514046,1733534567503,-500.0,8.219e-05,2]
[344514047,1733534567527,-500.0,8.219e-05,2]
[344514048,1733534567550,-500.0,8.219e-05,2]
[344514049,1733534567573,-197.23058107,8.219e-05,2]
[344514050,1733534567596,-500.0,8.219e-05,2]
[344514051,1733534567620,-1042.33,8.219e-05,2]
[344514052,1733534567644,-500.0,8.219e-05,2]
[344514053,1733534567668,-2288.51,8.219e-05,2]
[344514054,1733534567691,-500.0,8.219e-05,2]
[344514055,1733534567715,-1313.98,8.219e-05,2]
[344514056,1733534567739,-500.0,8.219e-05,2]
[344514057,1733534567761,-498.00974123,8.219e-05,2]
[344514058,1733534567785,-500.0,8.219e-05,2]
[344514059,1733534567808,-500.0,8.219e-05,2]
[344514060,1733534567831,-500.0,8.219e-05,2]
[344514061,1733534567853,-170.47342138,8.219e-05,2]
[344514062,1733534567876,-500.0,8.219e-05,2]
[344514063,1733534567899,-1579.06,8.219e-05,2]
[344514064,1733534567922,-500.0,8.219e-05,2]
[344514065,1733534567946,-639.49,8.219e-05,2]
[344514066,1733534567969,-1489.57,8.219e-05,2]
[344514067,1733534567996,-1973.67,8.219e-05,2]
[344514068,1733534568024,-500.0,8.219e-05,2]
[344514069,1733534568048,-500.0,8.219e-05,2]
[344514070,1733534568070,-500.0,8.219e-05,2]
[344514071,1733534568102,-1336.14,8.219e-05,2]
[344514072,1733534568138,-500.0,8.219e-05,2]
[344514073,1733534568170,-598.85,8.219e-05,2]
[344514074,1733534568209,-165.43710164,8.219e-05,2]
[344514075,1733534568247,-1410.28,8.219e-05,2]
[344514076,1733534568282,-500.0,8.219e-05,2]
[344514077,1733534568316,-500.0,8.219e-05,2]
[344514078,1733534568353,-1652.97,8.219e-05,2]
[344514079,1733534568386,-1682.55,8.219e-05,2]
[344514080,1733534568420,-2080.01,8.219e-05,2]
[344514081,1733534568455,-4172.15,8.219e-05,2]
[344514082,1733534568499,-500.0,8.219e-05,2]
[344514083,1733534568528,-500.0,8.219e-05,2]
[344514084,1733534568563,-500.0,8.219e-05,2]
[344514085,1733534568593,-1426.43,8.219e-05,2]
[344514086,1733534568631,-500.0,8.219e-05,2]
[344514087,1733534568660,-1051.53,8.219e-05,2]
[344514088,1733534568698,-1496.52,8.219e-05,2]
[344514089,1733534568736,-1829.66,8.219e-05,2]
[344514090,1733534568790,-2450.83,8.219e-05,2]
[344514091,1733534568823,-500.0,8.219e-05,2]
[344514092,1733534568858,-500.0,8.219e-05,2]
[344514093,1733534568890,-500.0,8.219e-05,2]
[344514094,1733534568921,-500.0,8.219e-05,2]
[344514095,1733534568953,-500.0,8.219e-05,2]
[344514096,1733534568993,-500.0,8.219e-05,2]
[344514097,1733534569025,-1067.22,8.219e-05,2]
[344514098,1733534569054,-500.0,8.219e-05,2]
[344514099,1733534569085,-3170.17,8.219e-05,2]
[344514100,1733534569116,-500.0,8.219e-05,2]
[344514101,1733534569146,-500.0,8.219e-05,2]
[344514102,1733534569177,-500.0,8.219e-05,2]
[344514103,1733534569207,-1635.57,8.219e-05,2]
[344514104,1733534569239,-500.0,8.219e-05,2]
[344514105,1733534569270,-500.0,8.219e-05,2]
[344514106,1733534569324,-500.0,8.219e-05,2]
[344514107,1733534569361,-500.0,8.219e-05,2]
[344514108,1733534569397,-221.18626032,8.219e-05,2]
[344514109,1733534569435,-2791.9,8.219e-05,2]
[344514110,1733534569468,-873.81,8.219e-05,2]
[344514111,1733534569503,-500.0,8.219e-05,2]
[344514112,1733534569539,-1306.08,8.219e-05,2]
[344514113,1733534569573,-503.72397463,8.219e-05,2]
[344514114,1733534569605,-500.0,8.219e-05,2]
[344514115,1733534569638,-500.0,8.219e-05,2]
[344514116,1733534569669,-1375.26,8.219e-05,2]
[344514117,1733534569701,-2435.51,8.219e-05,2]
[344514118,1733534569734,-515.83,8.219e-05,2]
[344514119,1733534569764,-500.0,8.219e-05,2]
[344514120,1733534569794,-1385.01,8.219e-05,2]
[344514121,1733534569824,-501.14880751,8.219e-05,2]
[344514122,1733534569855,-1388.39,8.219e-05,2]
[344514123,1733534569884,-500.0,8.219e-05,2]
[344514124,1733534569915,-500.0,8.219e-05,2]
[344514125,1733534569946,-500.0,8.219e-05,2]
[344514126,1733534569978,-604.00257639,8.219e-05,2]
[344514127,1733534570007,-500.0,8.219e-05,2]
[344514128,1733534570037,-1319.34,8.219e-05,2]
[344514129,1733534570067,-500.0,8.219e-05,2]
[344514130,1733534570096,-807.07,8.219e-05,2]
[344514131,1733534570126,-807.07,8.219e-05,2]
[344514132,1733534570157,-807.07,8.219e-05,2]
[344514133,1733534570187,-760.24,8.219e-05,2]
[344514134,1733534570218,-807.07,8.219e-05,2]
[344514135,1733534570250,-807.07,8.219e-05,2]
[344514136,1733534570281,-807.07,8.219e-05,2]
[344514137,1733534570311,-500.0,8.219e-05,2]
[344514138,1733534570342,-197.37144817,8.219e-05,2]
[344514139,1733534570372,-500.0,8.219e-05,2]
[344514140,1733534570401,-449.88516808,8.219e-05,2]
[344514141,1733534570431,-500.0,8.219e-05,2]
[344514142,1733534570464,-500.0,8.219e-05,2]
[344514143,1733534570494,-467.23770205,8.219e-05,2]
[344514144,1733534570524,-500.0,8.219e-05,2]
[344514145,1733534570554,-500.0,8.219e-05,2]
[344514146,1733534570583,-500.0,8.219e-05,2]
[344514147,1733534570613,-3134.44,8.219e-05,2]
[344514148,1733534570643,-1212.53,8.219e-05,2]
[344514149,1733534570673,-1534.55,8.219e-05,2]
[344514150,1733534570702,-1019.07,8.219e-05,2]
[344514151,1733534570737,-500.0,8.219e-05,2]
[344514152,1733534570767,-1771.79,8.219e-05,2]
[344514153,1733534570797,-500.0,8.219e-05,2]
[344514154,1733534570825,-875.16,8.219e-05,2]
[344514155,1733534570855,-652.19,8.219e-05,2]
[344514156,1733534570886,-500.0,8.219e-05,2]
[344514157,1733534570915,-500.0,8.219e-05,2]
[344514158,1733534570945,-507.77,8.219e-05,2]
[344514159,1733534570974,-1672.05,8.219e-05,2]
[344514160,1733534571003,-500.0,8.219e-05,2]
[344514161,1733534571032,-500.0,8.219e-05,2]
[344514162,1733534571061,-500.0,8.219e-05,2]
[344514163,1733534571090,-2090.14,8.219e-05,2]
[344514164,1733534571118,-500.0,8.219e-05,2]
[344514165,1733534571146,-743.9,8.219e-05,2]
[344514166,1733534571175,-500.0,8.219e-05,2]
[344514167,1733534571204,-500.0,8.219e-05,2]
[344514168,1733534571233,-500.0,8.219e-05,2]
[344514169,1733534571264,-1293.57,8.219e-05,2]
[344514170,1733534571293,-500.0,8.219e-05,2]
[344514171,1733534571323,-1615.18,8.219e-05,2]
[344514172,1733534571353,-272.7,8.219e-05,2]
[344514173,1733534571383,-500.0,8.219e-05,2]
[344514174,1733534571408,-500.0,8.219e-05,2]
[344514175,1733534571432,-500.0,8.219e-05,2]
[344514176,1733534571986,-582.08,8.219e-05,2]
[344514177,1733534572009,-500.0,8.219e-05,2]
[344514178,1733534572032,-727.15,8.219e-05,2]
[344514179,1733534572056,-778.61,8.219e-05,2]
[344514180,1733534572081,-2314.43,8.219e-05,2]
[344514181,1733534572104,-500.0,8.219e-05,2]
[344514182,1733534572126,-500.0,8.219e-05,2]
[344514183,1733534572148,-500.0,8.219e-05,2]
[344514184,1733534572170,-1013.27,8.219e-05,2]
[344514185,1733534572192,-985.91,8.219e-05,2]
[344514186,1733534572215,-500.0,8.219e-05,2]
[344514187,1733534572239,-500.0,8.219e-05,2]
[344514188,1733534572261,-1171.43,8.219e-05,2]
[344514189,1733534572284,-1416.71,8.219e-05,2]
[344514190,1733534572305,-500.0,8.219e-05,2]
[344514191,1733534572327,-500.0,8.219e-05,2]
[344514192,1733534572348,-500.0,8.219e-05,2]
[344514193,1733534572370,-1631.71,8.219e-05,2]
[344514194,1733534572392,-500.0,8.219e-05,2]
[344514195,1733534572413,-500.0,8.219e-05,2]
[344514196,1733534572437,-592.6,8.219e-05,2]
[344514197,1733534572460,-500.0,8.219e-05,2]
[344514198,1733534572484,-500.0,8.219e-05,2]
[344514199,1733534572506,-1758.52,8.219e-05,2]
[344514200,1733534572529,-500.0,8.219e-05,2]
[344514201,1733534572552,-500.0,8.219e-05,2]
[344514202,1733534572573,-500.0,8.219e-05,2]
[344514203,1733534572595,-1009.89,8.219e-05,2]
[344514204,1733534572618,-500.0,8.219e-05,2]
[344514205,1733534572641,-500.0,8.219e-05,2]
[344514206,1733534572663,-500.0,8.219e-05,2]
[344514207,1733534572686,-500.0,8.219e-05,2]
[344514208,1733534572709,-500.0,8.219e-05,2]
[344514209,1733534572734,-500.0,8.219e-05,2]
[344514210,1733534572757,-500.0,8.219e-05,2]
[344514211,1733534572781,-500.0,8.219e-05,2]
[344514212,1733534572803,-1854.79,8.219e-05,2]
[344514213,1733534572826,-519.53,8.219e-05,2]
[344514214,1733534572850,-500.0,8.219e-05,2]
[344514215,1733534572872,-1350.63,8.219e-05,2]
[344514216,1733534572894,-500.0,8.219e-05,2]
[344514217,1733534572917,-2970.04,8.219e-05,2]
[344514218,1733534572940,-500.0,8.219e-05,2]
[344514219,1733534572962,-500.0,8.219e-05,2]
[344514220,1733534572986,-500.0,8.219e-05,2]
[344514221,1733534573009,-506.59857231,8.219e-05,2]
[344514222,1733534573031,-942.17,8.219e-05,2]
[344514223,1733534573054,-718.37,8.219e-05,2]
[344514224,1733534573077,-500.0,8.219e-05,2]
[344514225,1733534573100,-213.4,8.219e-05,2]
[344514226,1733534573124,-1297.4,8.219e-05,2]
[344514227,1733534573146,-275.83686176,8.219e-05,2]
[344514228,1733534573169,-500.0,8.219e-05,2]
[344514229,1733534573192,-1656.99,8.219e-05,2]
[344514230,1733534573215,-510.90318945,8.219e-05,2]
[344514231,1733534573239,-500.0,8.219e-05,2]
[344514232,1733534573263,-500.0,8.219e-05,2]
[344514233,1733534573285,-1113.06,8.219e-05,2]
[344514234,1733534573308,-708.83,8.219e-05,2]
[344514235,1733534573330,-1661.87,8.219e-05,2]
[344514236,1733534573351,-500.0,8.219e-05,2]
[344514237,1733534573373,-2136.73,8.219e-05,2]
[344514238,1733534573396,-500.0,8.219e-05,2]
[344514239,1733534573419,-500.0,8.219e-05,2]
[344514240,1733534573444,-500.0,8.219e-05,2]
[344514241,1733534573466,-1135.85,8.219e-05,2]
[344514242,1733534573491,-1634.73,8.219e-05,2]
[344514243,1733534573515,-560.78,8.219e-05,2]
[344514244,1733534573538,-1287.33,8.219e-05,2]
[344514245,1733534573561,-500.0,8.219e-05,2]
[344514246,1733534573585,-500.0,8.219e-05,2]
[344514247,1733534573609,-500.0,8.219e-05,2]
[344514248,1733534573633,-500.0,8.219e-05,2]
[344514249,1733534573657,-1461.49,8.219e-05,2]
[344514250,1733534573681,-500.0,8.219e-05,2]
[344514251,1733534573703,-500.0,8.219e-05,2]
[344514252,1733534573725,-500.0,8.219e-05,2]
[344514253,1733534573749,-500.0,8.219e-05,2]
[344514254,1733534573771,-500.0,8.219e-05,2]
[344514255,1733534573794,-500.0,8.219e-05,2]
[344514256,1733534573816,-1188.56,8.219e-05,2]
[344514257,1733534573839,-2040.68,8.219e-05,2]
[344514258,1733534573862,-1879.78,8.219e-05,2]
[344514259,1733534573888,-500.0,8.219e-05,2]
[344514260,1733534573910,-645.12,8.219e-05,2]
[344514261,1733534573932,-500.0,8.219e-05,2]
[344514262,1733534573954,-500.0,8.219e-05,2]
[344514263,1733534573977,-2728.89,8.219e-05,2]
[344514264,1733534574000,-500.0,8.219e-05,2]
[344514265,1733534574022,-703.19,8.219e-05,2]
[344514266,1733534574044,-500.0,8.219e-05,2]
[344514267,1733534574065,-2684.93,8.219e-05,2]
[344514268,1733534574086,-500.0,8.219e-05,2]
[344514269,1733534574107,-500.0,8.219e-05,2]
[344514270,1733534574129,-539.9,8.219e-05,2]
[344514271,1733534574150,-1954.72,8.219e-05,2]
[344514272,1733534574172,-1653.8,8.219e-05,2]
[344514273,1733534574194,-1722.05,8.219e-05,2]
[344514274,1733534574216,-500.0,8.219e-05,2]
[344514275,1733534574240,-500.0,8.219e-05,2]
[344514276,1733534574263,-876.53,8.219e-05,2]
[344514277,1733534574284,-500.0,8.219e-05,2]
[344514278,1733534574306,-1772.88,8.219e-05,2]
[344514279,1733534574329,-4449.13,8.219e-05,2]
[344514280,1733534574355,-500.0,8.219e-05,2]
[344514281,1733534574376,-565.91,8.219e-05,2]
[344514282,1733534574397,-500.0,8.219e-05,2]
[344514283,1733534574419,-508.49203973,8.219e-05,2]
[344514284,1733534574444,-1320.54,8.219e-05,2]
[344514285,1733534574466,-1231.65,8.219e-05,2]
[344514286,1733534574491,-160.93457293,8.219e-05,2]
[344514287,1733534574513,-500.0,8.219e-05,2]
[344514288,1733534574535,-533.78,8.219e-05,2]
[344514289,1733534574556,-500.0,8.219e-05,2]
[344514290,1733534574579,-1008.44,8.219e-05,2]
[344514291,1733534574603,-1454.47,8.219e-05,2]
[344514292,1733534574626,-1258.35,8.219e-05,2]
[344514293,1733534574649,-500.23331111,8.219e-05,2]
[344514294,1733534574673,-15055.87,8.219e-05,2]
[344514295,1733534574696,-518.37,8.219e-05,2]
[344514296,1733534574720,-500.0,8.219e-05,2]
[344514297,1733534574744,-500.0,8.219e-05,2]
[344514298,1733534574766,-707.95,8.219e-05,2]
[344514299,1733534574788,-6860.44,8.219e-05,2]
[344514300,1733534574812,-500.0,8.219e-05,2]
[344514301,1733534574835,-1151.79,8.219e-05,2]
[344514302,1733534574859,-2462.88,8.219e-05,2]
[344514303,1733534574881,-1485.49,8.219e-05,2]
[344514304,1733534574907,-10327.5,8.219e-05,2]
[344514305,1733534574933,-6073.25,8.219e-05,2]
[344514306,1733534575152,-500.0,8.219e-05,2]
[344514307,1733534575175,-4445.85,8.219e-05,2]
[344514308,1733534575198,-500.0,8.219e-05,2]
[344514309,1733534575221,-500.0,8.219e-05,2]
[344514310,1733534575246,-500.0,8.219e-05,2]
[344514311,1733534575268,-500.0,8.219e-05,2]
[344514312,1733534575290,-500.0,8.219e-05,2]
[344514313,1733534575312,-878.28,8.219e-05,2]
[344514314,1733534575333,-500.0,8.219e-05,2]
[344514315,1733534575356,-791.73,8.219e-05,2]
[344514316,1733534575377,-2450.46,8.219e-05,2]
[344514317,1733534575400,-1026.86,8.219e-05,2]
[344514318,1733534575423,-500.0,8.219e-05,2]
[344514319,1733534575449,-1408.03,8.219e-05,2]
[344514320,1733534575471,-1992.9,8.219e-05,2]
[344514321,1733534575496,-1184.68,8.219e-05,2]
[344514322,1733534575520,-555.08,8.219e-05,2]
[344514323,1733534575542,-500.0,8.219e-05,2]
[344514324,1733534575564,-1524.13,8.219e-05,2]
[344514325,1733534575585,-500.0,8.219e-05,2]
[344514326,1733534575608,-676.95,8.219e-05,2]
[344514327,1733534575631,-2762.76,8.219e-05,2]
[344514328,1733534575654,-500.0,8.219e-05,2]
[344514329,1733534575677,-1555.56,8.219e-05,2]
[344514330,1733534575700,-2989.31,8.219e-05,2]
[344514331,1733534575722,-647.91662158,8.219e-05,2]
[344514332,1733534575745,-696.35,8.219e-05,2]
[344514333,1733534575767,-781.7,8.219e-05,2]
[344514334,1733534575788,-4641.13,8.219e-05,2]
[344514335,1733534575810,-1512.78,8.219e-05,2]
[344514336,1733534575833,-500.0,8.219e-05,2]
[344514337,1733534575855,-500.0,8.219e-05,2]
[344514338,1733534575876,-500.0,8.219e-05,2]
[344514339,1733534575898,-500.0,8.219e-05,2]
[344514340,1733534575920,-502.19348161,8.219e-05,2]
[344514341,1733534575941,-3892.95,8.219e-05,2]
[344514342,1733534575963,-500.0,8.219e-05,2]
[344514343,1733534575984,-500.0,8.219e-05,2]
[344514344,1733534576005,-568.38,8.219e-05,2]
[344514345,1733534576027,-500.0,8.219e-05,2]
[344514346,1733534576050,-10751.97,8.219e-05,2]
[344514347,1733534576071,-746.04,8.219e-05,2]
[344514348,1733534576092,-500.0,8.219e-05,2]
[344514349,1733534576113,-716.15,8.219e-05,2]
[344514350,1733534576134,-500.0,8.219e-05,2]
[344514351,1733534576156,-500.0,8.219e-05,2]
[344514352,1733534576177,-502.15399242,8.219e-05,2]
[344514353,1733534576197,-500.0,8.219e-05,2]
[344514354,1733534576219,-500.0,8.219e-05,2]
[344514355,1733534576243,-2290.7,8.219e-05,2]
[344514356,1733534576265,-500.0,8.219e-05,2]
[344514357,1733534576288,-836.8,8.219e-05,2]
[344514358,1733534576310,-500.0,8.219e-05,2]
[344514359,1733534576332,-6840.25,8.219e-05,2]
[344514360,1733534576354,-500.0,8.219e-05,2]
[344514361,1733534576376,-2523.76,8.219e-05,2]
[344514362,1733534576397,-2349.79,8.219e-05,2]
[344514363,1733534576420,-500.0,8.219e-05,2]
[344514364,1733534576444,-500.0,8.219e-05,2]
[344514365,1733534576466,-500.0,8.219e-05,2]
[344514366,1733534576490,-888.53,8.219e-05,2]
[344514367,1733534576512,-220.05307524,8.219e-05,2]
[344514368,1733534576536,-500.0,8.219e-05,2]
[344514369,1733534576557,-500.0,8.219e-05,2]
[344514370,1733534576580,-500.0,8.219e-05,2]
[344514371,1733534576602,-500.0,8.219e-05,2]
[344514372,1733534576625,-1022.46,8.219e-05,2]
[344514373,1733534576647,-500.0,8.219e-05,2]
[344514374,1733534576669,-500.0,8.219e-05,2]
[344514375,1733534576690,-2980.66,8.219e-05,2]
[344514376,1733534576712,-913.03,8.219e-05,2]
[344514377,1733534576736,-2894.23,8.219e-05,2]
[344514378,1733534576758,-500.0,8.219e-05,2]
[344514379,1733534576783,-1527.17,8.219e-05,2]
[344514380,1733534576806,-500.0,8.219e-05,2]
[344514381,1733534576828,-500.0,8.219e-05,2]
[344514382,1733534576853,-1713.17,8.219e-05,2]
[344514383,1733534576877,-4873.13,8.219e-05,2]
[344514384,1733534576899,-556.65561076,8.219e-05,2]
[344514385,1733534576923,-500.0,8.219e-05,2]
[344514386,1733534576944,-647.3652913,8.219e-05,2]
[344514387,1733534576966,-500.0,8.219e-05,2]
[344514388,1733534576988,-500.0,8.219e-05,2]
[344514389,1733534577010,-500.0,8.219e-05,2]
[344514390,1733534577031,-500.0,8.219e-05,2]
[344514391,1733534577053,-1524.69,8.219e-05,2]
[344514392,1733534577075,-500.0,8.219e-05,2]
[344514393,1733534577097,-500.0,8.219e-05,2]
[344514394,1733534577118,-527.22829362,8.219e-05,2]
[344514395,1733534577140,-4862.07,8.219e-05,2]
[344514396,1733534577164,-500.0,8.219e-05,2]
[344514397,1733534577186,-500.0,8.219e-05,2]
[344514398,1733534577210,-919.32,8.219e-05,2]
[344514399,1733534577236,-597.56,8.219e-05,2]
[344514400,1733534577259,-3401.85,8.219e-05,2]
[344514401,1733534577281,-1496.46,8.219e-05,2]
[344514402,1733534577302,-500.0,8.219e-05,2]
[344514403,1733534577325,-500.0,8.219e-05,2]
[344514404,1733534577346,-500.0,8.219e-05,2]
[344514405,1733534577434,-1248.35,8.219e-05,2]
[344514406,1733534577457,-500.0,8.219e-05,2]
[344514407,1733534577478,-500.0,8.219e-05,2]
[344514408,1733534577501,-500.0,8.219e-05,2]
[344514409,1733534577524,-1020.37,8.219e-05,2]
[344514410,1733534577546,-500.0,8.219e-05,2]
[344514411,1733534577567,-500.0,8.219e-05,2]
[344514412,1733534577588,-8245.82,8.219e-05,2]
[344514413,1733534577611,-896.87,8.219e-05,2]
[344514414,1733534577633,-3333.7,8.219e-05,2]
[344514415,1733534577655,-1590.36,8.219e-05,2]
[344514416,1733534577677,-2526.79,8.219e-05,2]
[344514417,1733534577700,-1622.98,8.219e-05,2]
[344514418,1733534577722,-608.49495941,8.219e-05,2]
[344514419,1733534577746,-1000.1,8.219e-05,2]
[344514420,1733534577768,-500.0,8.219e-05,2]
[344514421,1733534577791,-500.0,8.219e-05,2]
[344514422,1733534577813,-811.71,8.219e-05,2]
[344514423,1733534577837,-721.26,8.219e-05,2]
[344514424,1733534577862,-500.0,8.219e-05,2]
[344514425,1733534578279,-500.0,8.219e-05,2]
[344514426,1733534578322,-1938.93,8.219e-05,2]
[344514427,1733534578345,-1317.63,8.219e-05,2]
[344514428,1733534578366,-2502.24,8.219e-05,2]
[344514429,1733534578388,-500.0,8.219e-05,2]
[344514430,1733534578409,-500.0,8.219e-05,2]
[344514431,1733534578431,-500.0,8.219e-05,2]
[344514432,1733534578457,-500.0,8.219e-05,2]
[344514433,1733534578487,-1122.52,8.219e-05,2]
[344514434,1733534578511,-2291.48,8.219e-05,2]
[344514435,1733534578538,-563.88,8.219e-05,2]
[344514436,1733534578564,-500.0,8.219e-05,2]
[344514437,1733534578593,-674.26,8.219e-05,2]
[344514438,1733534578616,-500.0,8.219e-05,2]
[344514439,1733534578640,-18015.04,8.219e-05,2]
[344514440,1733534578662,-814.7,8.219e-05,2]
[344514441,1733534578686,-2253.9,8.219e-05,2]
[344514442,1733534578710,-501.81047929,8.219e-05,2]
[344514443,1733534578735,-500.0,8.219e-05,2]
[344514444,1733534578761,-500.0,8.219e-05,2]
[344514445,1733534578784,-508.94978831,8.219e-05,2]
[344514446,1733534578808,-709.4,8.219e-05,2]
[344514447,1733534578831,-3188.34,8.219e-05,2]
[344514448,1733534578853,-5849.38,8.219e-05,2]
[344514449,1733534578876,-6076.91,8.219e-05,2]
[344514450,1733534578899,-4051.34,8.219e-05,2]
[344514451,1733534578922,-1464.61,8.219e-05,2]
[344514452,1733534578944,-921.65,8.219e-05,2]
[344514453,1733534578966,-500.0,8.219e-05,2]
[344514454,1733534578996,-735.32,8.219e-05,2]
[344514455,1733534579020,-2054.61,8.219e-05,2]
[344514456,1733534579043,-3069.91,8.219e-05,2]
[344514457,1733534579066,-955.64,8.219e-05,2]
[344514458,1733534579090,-500.0,8.219e-05,2]
[344514459,1733534579113,-500.0,8.219e-05,2]
[344514460,1733534579137,-500.0,8.219e-05,2]
[344514461,1733534579160,-500.0,8.219e-05,2]
[344514462,1733534579183,-1426.36,8.219e-05,2]
[344514463,1733534579206,-500.0,8.219e-05,2]
[344514464,1733534579232,-500.0,8.219e-05,2]
[344514465,1733534579256,-500.0,8.219e-05,2]
[344514466,1733534579282,-4936.71,8.219e-05,2]
[344514467,1733534579305,-1499.61,8.219e-05,2]
[344514468,1733534579329,-1856.49,8.219e-05,2]
[344514469,1733534579351,-1817.28,8.219e-05,2]
[344514470,1733534579375,-2235.64,8.219e-05,2]
[344514471,1733534579397,-513.77,8.219e-05,2]